bitfinex/quotes_SOLUSD_20241029
["timestamp","ask_amount","ask_price","bid_price","bid_amount"]
[1730213124313,11.79084566,179.16,179.13,13.9563]
[1730213124526,11.79084566,179.15,179.13,13.9563]
[1730213125529,11.79084566,179.16,179.13,13.9563]
[1730213125740,11.79084566,179.17,179.13,25.74714566]
[1730213126031,11.79084566,179.17,179.13,13.9563]
[1730213126332,11.79084566,179.17,179.13,19.5388]
[1730213126924,16.4687,179.19,179.13,19.5388]
[1730213126925,11.79084566,179.16,179.13,19.5388]
[1730213127136,11.79084566,179.15,179.13,19.5388]
[1730213127509,11.79084566,179.16,179.13,19.5388]
[1730213127834,11.79084566,179.14,179.13,19.5388]
[1730213128333,11.79084566,179.14,179.09,11.79084566]
[1730213128334,11.79084566,179.14,179.1,13.9586]
[1730213128540,28.25954566,179.19,179.1,13.9586]
[1730213128541,11.79084566,179.12,179.1,13.9586]
[1730213129331,11.79084566,179.12,179.07,12.39142356]
[1730213129332,11.79084566,179.11,179.07,0.6005779]
[1730213129641,11.79084566,179.08,179.07,6.1848779]
[1730213129846,11.79084566,179.09,179.07,6.1848779]
[1730213130031,11.79084566,179.09,179.07,20.1458779]
[1730213130228,11.79084566,179.1,179.07,20.1458779]
[1730213130929,11.79084566,179.09,179.07,20.1458779]
[1730213131523,11.79084566,179.1,179.07,20.1458779]
[1730213131939,11.79084566,179.09,179.07,20.1458779]
[1730213132117,11.79084566,179.1,179.07,20.1458779]
[1730213132541,11.79084566,179.12,179.07,31.93672356]
[1730213132837,11.79084566,179.11,179.07,20.1458779]
[1730213133342,11.79084566,179.1,179.07,20.1458779]
[1730213134041,11.79084566,179.09,179.07,20.1458779]
[1730213134843,5.82292828,179.15,179.08,11.79084566]
[1730213135136,11.79084566,179.17,179.13,11.79084566]
[1730213135342,11.79084566,179.17,179.12,11.79084566]
[1730213135539,11.79084566,179.19,179.14,11.79084566]
[1730213135739,11.79084566,179.2,179.15,11.79084566]
[1730213136150,11.79084566,179.19,179.15,11.79084566]
[1730213136827,11.79084566,179.19,179.16,19.5356]
[1730213138826,11.79084566,179.19,179.16,13.954]
[1730213140033,11.79084566,179.21,179.16,25.74484566]
[1730213140237,11.79084566,179.22,179.17,11.79084566]
[1730213140447,32.88589794,179.23,179.18,11.79084566]
[1730213140860,11.79084566,179.24,179.19,11.79084566]
[1730213141229,15.7301,179.27,179.16,13.954]
[1730213141230,11.79084566,179.21,179.16,25.74484566]
[1730213141751,11.79084566,179.21,179.16,13.954]
[1730213141932,11.79084566,179.21,179.17,11.79084566]
[1730213142133,11.79084566,179.21,179.18,19.5333]
[1730213142333,11.79084566,179.23,179.18,31.32414566]
[1730213142671,10.05134985,179.26,179.21,11.79084566]
[1730213142828,27.52094566,179.27,179.22,11.79084566]
[1730213143030,11.79084566,179.28,179.23,11.79084566]
[1730213143537,11.79084566,179.27,179.22,11.79084566]
[1730213144331,21.9379,179.32,179.21,11.79084566]
[1730213144332,11.79084566,179.26,179.21,11.79084566]
[1730213144533,11.79084566,179.25,179.2,11.79084566]
[1730213144950,11.79084566,179.23,179.18,59.22904566]
[1730213145658,11.79084566,179.22,179.18,47.4382]
[1730213145833,11.79084566,179.21,179.18,47.4382]
[1730213146028,11.79084566,179.22,179.18,41.8573]
[1730213147058,11.79084566,179.22,179.18,47.4382]
[1730213147444,11.79084566,179.23,179.18,59.22904566]
[1730213147647,11.79084566,179.24,179.19,11.79084566]
[1730213147848,11.79084566,179.26,179.21,11.79084566]
[1730213148155,6.4429,179.3,179.18,47.4382]
[1730213148156,11.79084566,179.28,179.23,11.79084566]
[1730213148733,11.79084566,179.27,179.22,11.79084566]
[1730213149251,11.79084566,179.28,179.23,11.79084566]
[1730213149755,11.79084566,179.3,179.25,11.79084566]
[1730213149973,11.79084566,179.31,179.26,11.79084566]
[1730213150336,17.61275372,179.33,179.28,11.79084566]
[1730213150537,11.79084566,179.33,179.28,11.79084566]
[1730213150751,11.79084566,179.34,179.29,11.79084566]
[1730213151157,11.79084566,179.34,179.3,19.5203]
[1730213151366,11.79084566,179.35,179.3,31.31114566]
[1730213151961,11.79084566,179.34,179.3,19.5203]
[1730213152571,11.79084566,179.35,179.3,31.31114566]
[1730213153345,5.82111909,179.36,179.31,11.79084566]
[1730213153558,11.79084566,179.37,179.32,11.79084566]
[1730213154365,11.79084566,179.38,179.33,11.79084566]
[1730213155366,11.79084566,179.38,179.3,47.4065]
[1730213155367,11.79084566,179.39,179.34,11.79084566]
[1730213155570,11.79084566,179.38,179.33,11.79084566]
[1730213156273,11.79084566,179.36,179.31,31.31004566]
[1730213157157,11.79084566,179.37,179.32,11.79084566]
[1730213157676,11.79084566,179.37,179.33,5.5763]
[1730213158048,11.79084566,179.36,179.31,31.30974566]
[1730213158380,5.81961742,179.4,179.35,11.79084566]
[1730213158586,5.81961742,179.4,179.37,11.79084566]
[1730213158796,11.79084566,179.41,179.36,11.79084566]
[1730213158963,11.79084566,179.43,179.38,11.79084566]
[1730213159691,11.79084566,179.42,179.37,11.79084566]
[1730213159890,11.79084566,179.41,179.36,11.79084566]
[1730213160373,11.79084566,179.42,179.37,11.79084566]
[1730213160573,11.79084566,179.42,179.38,19.5115]
[1730213160972,11.79084566,179.43,179.38,31.30234566]
[1730213161273,11.79084566,179.41,179.38,19.5115]
[1730213162569,11.79084566,179.39,179.34,13.9392]
[1730213162774,11.79084566,179.37,179.34,13.9392]
[1730213162990,11.79084566,179.39,179.34,25.73004566]
[1730213163175,11.79084566,179.4,179.35,11.79084566]
[1730213164305,11.79084566,179.4,179.36,13.9384]
[1730213164803,11.79084566,179.38,179.36,13.9384]
[1730213166102,21.80350717,179.45,179.32,13.9408]
[1730213166103,11.79084566,179.37,179.32,13.9408]
[1730213166276,11.79084566,179.33,179.32,19.5171]
[1730213167001,11.79084566,179.33,179.28,19.5219]
[1730213167192,11.79084566,179.33,179.25,18.11454566]
[1730213167193,11.79084566,179.29,179.23,11.79084566]
[1730213167397,11.79084566,179.28,179.23,11.79084566]
[1730213167900,11.79084566,179.26,179.22,19.529]
[1730213168101,11.79084566,179.23,179.16,5.5814]
[1730213168286,11.79084566,179.17,179.16,5.5814]
[1730213168486,11.79084566,179.17,179.14,19.5373]
[1730213168683,11.79084566,179.15,179.14,19.5373]
[1730213169380,11.79084566,179.15,179.14,13.9554]
[1730213169897,11.79084566,179.16,179.14,13.9554]
[1730213170100,11.79084566,179.18,179.14,13.9554]
[1730213170475,18.85477449,179.19,179.14,32.81017449]
[1730213171279,18.85477449,179.2,179.14,43.39237449]
[1730213171687,18.85477449,179.21,179.17,23.776884]
[1730213172207,18.85477449,179.22,179.17,42.63165849]
[1730213173392,18.85477449,179.22,179.18,47.4382]
[1730213173696,18.85477449,179.22,179.18,66.29297449]
[1730213173896,18.85477449,179.27,179.21,18.85477449]
[1730213174087,18.85477449,179.26,179.2,18.85477449]
[1730213174287,18.85477449,179.24,179.19,42.63165849]
[1730213175092,6.4554,179.32,179.19,42.63165849]
[1730213175093,18.85477449,179.26,179.21,18.85477449]
[1730213175292,18.85477449,179.25,179.2,18.85477449]
[1730213175503,18.85477449,179.25,179.22,13.9493]
[1730213175805,18.85477449,179.23,179.22,13.9493]
[1730213176106,18.85477449,179.24,179.22,13.9493]
[1730213177512,18.85477449,179.26,179.22,13.9493]
[1730213177695,18.85477449,179.25,179.22,13.9493]
[1730213178904,18.85477449,179.26,179.22,13.9493]
[1730213179219,18.85477449,179.26,179.22,19.529]
[1730213179380,18.85477449,179.25,179.22,19.529]
[1730213180080,18.85477449,179.26,179.22,19.529]
[1730213180283,18.85477449,179.27,179.22,38.38377449]
[1730213181013,18.85477449,179.26,179.22,13.9493]
[1730213181600,18.85477449,179.23,179.22,13.9493]
[1730213182685,18.85477449,179.23,179.19,19.5322]
[1730213182884,18.85477449,179.2,179.19,19.5322]
[1730213183603,18.85477449,179.22,179.19,19.5322]
[1730213183806,18.85477449,179.23,179.19,19.5322]
[1730213183982,20.3975,179.32,179.19,19.5322]
[1730213183983,18.85477449,179.24,179.19,66.29027449]
[1730213184188,18.85477449,179.25,179.2,18.85477449]
[1730213184507,18.85477449,179.24,179.19,66.29027449]
[1730213184689,18.85477449,179.24,179.2,23.776884]
[1730213185487,18.85477449,179.24,179.19,66.29027449]
[1730213186893,18.85477449,179.23,179.19,47.4355]
[1730213187214,18.85477449,179.2,179.19,19.5322]
[1730213187512,18.85477449,179.21,179.19,19.5322]
[1730213187717,18.85477449,179.22,179.19,19.5322]
[1730213188310,18.85477449,179.23,179.19,19.5322]
[1730213188487,18.85477449,179.24,179.19,38.38697449]
[1730213188687,18.85477449,179.25,179.2,18.85477449]
[1730213188886,18.85477449,179.25,179.21,19.5301]
[1730213189187,18.85477449,179.28,179.23,18.85477449]
[1730213189388,18.85477449,179.26,179.22,23.776884]
[1730213189616,18.85477449,179.25,179.21,47.4303]
[1730213189793,18.85477449,179.22,179.21,47.4303]
[1730213190800,18.85477449,179.22,179.21,27.9002]
[1730213191005,18.85477449,179.22,179.17,46.75967449]
[1730213191006,18.85477449,179.22,179.18,19.5333]
[1730213191613,18.85477449,179.23,179.18,38.38807449]
[1730213191917,18.85477449,179.23,179.19,18.85477449]
[1730213192112,18.85477449,179.24,179.19,18.85477449]
[1730213192339,18.85477449,179.25,179.2,18.85477449]
[1730213193113,18.85477449,179.25,179.21,19.5301]
[1730213193318,18.85477449,179.26,179.21,66.28507449]
[1730213193919,18.85477449,179.25,179.21,47.4303]
[1730213194296,18.85477449,179.26,179.21,66.28507449]
[1730213194499,11.77390817,179.27,179.22,11.77390817]
[1730213194902,11.77390817,179.29,179.24,11.77390817]
[1730213195104,11.77390817,179.28,179.23,11.77390817]
[1730213195306,11.77390817,179.27,179.23,11.77390817]
[1730213196012,11.77390817,179.28,179.23,11.77390817]
[1730213196226,11.77390817,179.24,179.16,19.5356]
[1730213196425,11.77390817,179.22,179.17,11.77390817]
[1730213196737,11.77390817,179.25,179.2,11.77390817]
[1730213197542,11.77390817,179.23,179.18,11.77390817]
[1730213198735,11.77390817,179.23,179.19,19.5322]
[1730213199433,11.77390817,179.21,179.19,19.5322]
[1730213199736,11.77390817,179.22,179.19,19.5322]
[1730213200104,11.77390817,179.2,179.19,19.5322]
[1730213200808,11.77390817,179.2,179.16,75.3516]
[1730213201613,11.77390817,179.19,179.16,75.3516]
[1730213201807,11.77390817,179.18,179.16,75.3516]
[1730213202832,11.77390817,179.18,179.16,69.77]
[1730213203032,11.77390817,179.24,179.17,35.55079217]
[1730213203210,11.77390817,179.23,179.18,11.77390817]
[1730213203622,11.77390817,179.22,179.18,11.77390817]
[1730213204029,11.77390817,179.24,179.2,11.77390817]
[1730213204231,11.77390817,179.25,179.17,23.776884]
[1730213204436,11.77390817,179.27,179.23,11.77390817]
[1730213204942,11.77390817,179.28,179.24,47.4223]
[1730213205111,11.77390817,179.28,179.24,59.19620817]
[1730213205312,11.77390817,179.28,179.24,47.4223]
[1730213205609,11.77390817,179.28,179.24,59.19620817]
[1730213205835,11.77390817,179.29,179.24,59.19620817]
[1730213206625,11.77390817,179.28,179.24,47.4223]
[1730213207335,11.77390817,179.28,179.24,39.66940817]
[1730213207525,11.77390817,179.28,179.24,27.8955]
[1730213207726,11.77390817,179.29,179.24,39.66940817]
[1730213208426,11.77390817,179.31,179.26,11.77390817]
[1730213209207,11.77390817,179.32,179.27,11.77390817]
[1730213209412,11.77390817,179.32,179.28,11.77390817]
[1730213209849,11.77390817,179.32,179.27,11.77390817]
[1730213210948,5.81895263,179.36,179.28,59.18560817]
[1730213211121,11.77390817,179.33,179.28,59.18560817]
[1730213211439,11.77390817,179.31,179.28,47.4117]
[1730213212130,11.77390817,179.29,179.28,19.5224]
[1730213212941,11.77390817,179.29,179.28,13.9446]
[1730213214034,11.77390817,179.3,179.28,13.9446]
[1730213214222,11.77390817,179.31,179.28,13.9446]
[1730213214420,11.77390817,179.33,179.28,25.71850817]
[1730213214618,17.5928608,179.36,179.31,11.77390817]
[1730213214921,11.77390817,179.38,179.33,11.77390817]
[1730213215145,11.77390817,179.36,179.32,11.77390817]
[1730213215337,11.77390817,179.34,179.29,11.77390817]
[1730213216121,11.77390817,179.31,179.28,47.4117]
[1730213216742,11.77390817,179.3,179.28,47.4117]
[1730213217127,11.77390817,179.31,179.28,47.4117]
[1730213217623,11.77390817,179.3,179.28,47.4117]
[1730213218031,11.77390817,179.3,179.28,41.8339]
[1730213218252,11.77390817,179.32,179.28,41.8339]
[1730213219160,11.77390817,179.35,179.3,11.77390817]
[1730213219544,11.77390817,179.31,179.28,47.4117]
[1730213220659,11.77390817,179.3,179.28,47.4117]
[1730213220958,11.77390817,179.32,179.28,47.4117]
[1730213221869,11.77390817,179.33,179.29,11.77390817]
[1730213222648,11.77390817,179.35,179.3,11.77390817]
[1730213222943,11.77390817,179.36,179.32,11.77390817]
[1730213223144,11.77390817,179.38,179.33,11.77390817]
[1730213223348,11.77390817,179.39,179.34,11.77390817]
[1730213223648,17.80515639,179.41,179.29,6.2024]
[1730213223649,11.77390817,179.38,179.33,11.77390817]
[1730213223954,11.77390817,179.38,179.34,19.516]
[1730213224457,11.77390817,179.39,179.34,31.28990817]
[1730213224663,11.77390817,179.38,179.34,19.516]
[1730213224868,11.77390817,179.39,179.34,31.28990817]
[1730213225234,11.77390817,179.39,179.35,11.77390817]
[1730213225434,5.81717683,179.42,179.38,26.87230817]
[1730213225666,5.81717683,179.42,179.41,35.55079217]
[1730213225667,7.683e-05,179.42,179.41,35.55079217]
[1730213225841,11.77390817,179.5,179.42,23.776884]
[1730213226251,16.6329,179.54,179.44,11.77390817]
[1730213226252,11.77390817,179.49,179.44,11.77390817]
[1730213226557,18.79047824,179.5,179.45,40.45122424]
[1730213226747,18.79047824,179.5,179.45,21.660746]
[1730213226942,18.79047824,179.48,179.43,18.79047824]
[1730213227165,18.79047824,179.46,179.41,38.29877824]
[1730213227538,18.79047824,179.47,179.42,18.79047824]
[1730213227980,18.79047824,179.46,179.43,19.5062]
[1730213229045,18.79047824,179.46,179.41,46.65957824]
[1730213229952,18.79047824,179.44,179.41,27.8691]
[1730213230346,18.79047824,179.46,179.39,29.17515582]
[1730213230574,18.79047824,179.4,179.39,19.5105]
[1730213230746,18.79047824,179.42,179.39,19.5105]
[1730213230943,18.79047824,179.44,179.39,32.72657824]
[1730213231171,18.79047824,179.45,179.4,18.79047824]
[1730213231387,18.79047824,179.45,179.39,13.9361]
[1730213231388,18.79047824,179.46,179.41,18.79047824]
[1730213231681,18.79047824,179.53,179.45,18.79047824]
[1730213231851,18.79047824,179.52,179.47,18.79047824]
[1730213232052,18.79047824,179.53,179.47,18.79047824]
[1730213232451,18.79047824,179.52,179.47,18.79047824]
[1730213233169,18.79047824,179.52,179.48,19.5007]
[1730213236796,18.79047824,179.53,179.48,38.29117824]
[1730213236976,18.79047824,179.55,179.5,18.79047824]
[1730213237170,18.79047824,179.54,179.49,18.79047824]
[1730213237476,18.79047824,179.53,179.48,38.29117824]
[1730213237679,18.79047824,179.54,179.49,18.79047824]
[1730213238001,18.79047824,179.52,179.48,19.5007]
[1730213244597,18.79047824,179.47,179.45,19.5036]
[1730213244769,18.79047824,179.48,179.45,19.5036]
[1730213245170,0.1,179.56,179.47,18.79047824]
[1730213245171,18.79047824,179.52,179.47,18.79047824]
[1730213245372,18.79047824,179.51,179.5,5.0]
[1730213246675,11.74398019,179.51,179.5,5.0]
[1730213247404,11.74398019,179.52,179.5,24.4985]
[1730213247692,5.81120366,179.58,179.5,24.4985]
[1730213247693,11.74398019,179.51,179.5,24.4985]
[1730213248715,11.74398019,179.51,179.5,18.9275]
[1730213249011,11.74398019,179.51,179.5,24.4985]
[1730213250993,11.74398019,179.52,179.5,24.4985]
[1730213251696,11.74398019,179.51,179.5,24.4985]
[1730213252827,11.74398019,179.54,179.5,36.24248019]
[1730213252994,11.74398019,179.52,179.5,24.4985]
[1730213254045,11.74398019,179.51,179.5,24.4985]
[1730213255608,11.74398019,179.51,179.5,18.9275]
[1730213257216,11.74398019,179.51,179.5,5.0]
[1730213257425,17.31468019,179.51,179.5,5.0]
[1730213258404,11.74398019,179.51,179.5,5.0]
[1730213258614,17.31468019,179.51,179.5,5.0]
[1730213258810,17.31468019,179.51,179.47,13.9296]
[1730213259032,11.74398019,179.48,179.47,13.9296]
[1730213259605,11.74398019,179.48,179.43,19.5062]
[1730213259805,11.74398019,179.44,179.43,19.5062]
[1730213260508,11.74398019,179.44,179.43,13.933]
[1730213260913,11.74398019,179.44,179.43,19.5062]
[1730213261219,11.74398019,179.44,179.43,13.933]
[1730213261599,11.74398019,179.44,179.39,19.5105]
[1730213261827,11.74398019,179.41,179.39,19.5105]
[1730213262203,11.74398019,179.42,179.39,19.5105]
[1730213262531,11.74398019,179.4,179.39,19.5105]
[1730213263736,11.74398019,179.4,179.36,27.8754]
[1730213264035,11.74398019,179.38,179.36,27.8754]
[1730213264418,11.74398019,179.38,179.35,19.5148]
[1730213264623,11.74398019,179.36,179.35,19.5148]
[1730213264827,11.74398019,179.37,179.35,19.5148]
[1730213265634,11.74398019,179.37,179.35,13.9392]
[1730213266817,11.74398019,179.36,179.35,13.9392]
[1730213267319,11.74398019,179.37,179.35,13.9392]
[1730213267839,11.74398019,179.36,179.35,13.9392]
[1730213268040,11.74398019,179.37,179.35,13.9392]
[1730213268241,11.74398019,179.36,179.35,13.9392]
[1730213268732,11.74398019,179.37,179.35,13.9392]
[1730213269319,6.74398019,179.37,179.35,13.9392]
[1730213269530,11.74398019,179.39,179.35,13.9392]
[1730213269728,11.74398019,179.4,179.35,25.68318019]
[1730213269912,11.74398019,179.39,179.35,13.9392]
[1730213270120,11.74398019,179.4,179.35,25.68318019]
[1730213271135,11.74398019,179.4,179.35,59.13718019]
[1730213271336,11.74398019,179.41,179.37,11.74398019]
[1730213271518,11.74398019,179.42,179.37,11.74398019]
[1730213272339,11.74398019,179.43,179.38,59.12918019]
[1730213272529,11.74398019,179.44,179.39,11.74398019]
[1730213272730,11.74398019,179.45,179.4,11.74398019]
[1730213272936,11.74398019,179.46,179.41,35.52086419]
[1730213273717,11.74398019,179.46,179.38,75.2589]
[1730213273718,11.74398019,179.45,179.4,11.74398019]
[1730213274225,11.74398019,179.46,179.41,11.74398019]
[1730213274429,11.74398019,179.46,179.42,19.5072]
[1730213276118,11.74398019,179.45,179.42,19.5072]
[1730213276320,16.5219,179.5,179.38,8.62465582]
[1730213276321,11.74398019,179.43,179.38,8.62465582]
[1730213276514,11.74398019,179.43,179.38,11.74398019]
[1730213276916,11.74398019,179.45,179.41,11.74398019]
[1730213277342,11.74398019,179.44,179.39,20.36863601]
[1730213277546,11.74398019,179.43,179.39,8.62465582]
[1730213277749,11.74398019,179.43,179.39,20.36863601]
[1730213278450,11.74398019,179.43,179.4,19.5094]
[1730213279145,11.74398019,179.44,179.4,19.5094]
[1730213279334,11.74398019,179.47,179.42,11.74398019]
[1730213280443,11.74398019,179.46,179.42,19.5072]
[1730213280655,11.74398019,179.46,179.42,31.25118019]
[1730213281141,11.74398019,179.5,179.45,11.74398019]
[1730213281346,11.74398019,179.47,179.42,59.11868019]
[1730213282240,11.74398019,179.45,179.42,19.5072]
[1730213282558,11.6827,179.52,179.42,25.67768019]
[1730213282559,11.74398019,179.47,179.42,25.67768019]
[1730213282740,11.74398019,179.48,179.43,11.74398019]
[1730213282940,11.74398019,179.47,179.42,25.67768019]
[1730213283859,11.74398019,179.47,179.42,19.5072]
[1730213284032,11.74398019,179.46,179.42,19.5072]
[1730213286629,11.74398019,179.45,179.42,19.5072]
[1730213286828,11.74398019,179.43,179.42,19.5072]
[1730213287028,11.74398019,179.43,179.37,5.575]
[1730213287564,11.74398019,179.38,179.37,19.5126]
[1730213288934,11.74398019,179.38,179.36,27.8768]
[1730213289441,11.74398019,179.39,179.36,27.8768]
[1730213289642,11.74398019,179.38,179.36,27.8768]
[1730213289843,11.74398019,179.37,179.36,27.8768]
[1730213290039,11.74398019,179.37,179.33,19.517]
[1730213290976,11.74398019,179.36,179.33,19.517]
[1730213291144,11.74398019,179.35,179.33,19.517]
[1730213291345,11.74398019,179.34,179.33,19.517]
[1730213292965,11.74398019,179.34,179.29,71.185884]
[1730213293145,11.74398019,179.34,179.29,82.92986419]
[1730213293879,11.74398019,179.33,179.29,79.81053982]
[1730213294692,11.74398019,179.3,179.29,47.409]
[1730213295770,11.74398019,179.3,179.29,27.8877]
[1730213296155,11.74398019,179.33,179.29,36.51235582]
[1730213296967,11.74398019,179.32,179.29,36.51235582]
[1730213297357,11.74398019,179.31,179.29,36.51235582]
[1730213298056,11.74398019,179.31,179.29,47.409]
[1730213299055,11.74398019,179.3,179.29,47.409]
[1730213299493,11.74398019,179.3,179.29,27.8877]
[1730213299953,11.74398019,179.3,179.26,19.5246]
[1730213300154,11.74398019,179.27,179.26,13.9462]
[1730213300386,11.74398019,179.27,179.26,19.5246]
[1730213300880,11.74398019,179.28,179.26,19.5246]
[1730213301594,11.74398019,179.32,179.27,11.74398019]
[1730213301791,11.74398019,179.31,179.26,11.74398019]
[1730213302301,11.74398019,179.32,179.27,11.74398019]
[1730213302966,11.74398019,179.33,179.28,11.74398019]
[1730213303366,11.74398019,179.32,179.28,19.5224]
[1730213304370,11.74398019,179.34,179.29,11.74398019]
[1730213304683,11.74398019,179.36,179.31,11.74398019]
[1730213305071,11.74398019,179.37,179.32,11.74398019]
[1730213305588,11.74398019,179.36,179.32,19.5181]
[1730213306197,11.74398019,179.34,179.32,19.5181]
[1730213306892,11.74398019,179.34,179.32,13.9415]
[1730213307071,11.74398019,179.35,179.32,13.9415]
[1730213307392,21.3421,179.4,179.32,13.9415]
[1730213307393,11.74398019,179.36,179.32,13.9415]
[1730213307806,11.74398019,179.35,179.32,13.9415]
[1730213308095,11.74398019,179.34,179.32,13.9415]
[1730213308293,21.3421,179.4,179.32,13.9415]
[1730213308294,11.74398019,179.33,179.32,13.9415]
[1730213309407,11.74398019,179.33,179.27,31.26748019]
[1730213309794,15.868,179.4,179.27,31.26748019]
[1730213309795,21.3424,179.4,179.27,47.4143]
[1730213310005,11.74398019,179.37,179.32,11.74398019]
[1730213311520,11.74398019,179.38,179.34,11.74398019]
[1730213312215,11.74398019,179.4,179.35,11.74398019]
[1730213312591,11.74398019,179.41,179.36,11.74398019]
[1730213312792,11.74398019,179.4,179.34,11.74398019]
[1730213313487,11.74398019,179.4,179.35,19.5148]
[1730213316026,11.74398019,179.4,179.35,11.74398019]
[1730213316693,11.74398019,179.38,179.33,39.62548019]
[1730213317217,11.74398019,179.36,179.31,31.26318019]
[1730213317413,11.74398019,179.37,179.32,11.74398019]
[1730213317616,5.5733,179.43,179.31,31.26318019]
[1730213317617,11.74398019,179.36,179.31,31.26318019]
[1730213317917,11.74398019,179.35,179.31,13.9423]
[1730213318417,11.74398019,179.34,179.31,13.9423]
[1730213320200,11.74398019,179.32,179.31,13.9423]
[1730213320400,11.74398019,179.32,179.3,5.5772]
[1730213320898,11.74398019,179.31,179.29,5.5775]
[1730213321099,11.74398019,179.3,179.28,13.9444]
[1730213321322,11.74398019,179.31,179.28,13.9444]
[1730213321540,5.5753,179.36,179.28,13.9444]
[1730213321706,11.74398019,179.34,179.29,11.74398019]
[1730213321895,11.74398019,179.33,179.28,25.68838019]
[1730213322301,11.74398019,179.34,179.29,11.74398019]
[1730213322999,11.74398019,179.35,179.32,19.5181]
[1730213323434,11.74398019,179.37,179.32,31.26208019]
[1730213323931,11.74398019,179.36,179.32,19.5181]
[1730213325514,11.74398019,179.33,179.32,13.9415]
[1730213325827,11.74398019,179.34,179.32,19.5181]
[1730213326626,11.74398019,179.33,179.3,5.5772]
[1730213326825,11.74398019,179.31,179.3,5.5772]
[1730213327727,11.74398019,179.31,179.28,13.944]
[1730213328123,11.74398019,179.29,179.28,13.944]
[1730213328304,11.74398019,179.3,179.28,13.944]
[1730213328915,11.74398019,179.31,179.26,39.63638019]
[1730213330230,11.74398019,179.33,179.28,11.74398019]
[1730213330433,11.74398019,179.35,179.3,11.74398019]
[1730213331026,11.74398019,179.35,179.31,19.5192]
[1730213331913,11.74398019,179.36,179.32,35.52086419]
[1730213332118,11.74398019,179.36,179.31,59.14778019]
[1730213333013,11.74398019,179.36,179.32,11.74398019]
[1730213333208,11.74398019,179.37,179.32,11.74398019]
[1730213333730,11.74398019,179.36,179.32,11.74398019]
[1730213334113,11.74398019,179.36,179.33,19.517]
[1730213334514,11.74398019,179.35,179.33,19.517]
[1730213334738,11.74398019,179.34,179.33,19.517]
[1730213334918,11.74398019,179.34,179.3,13.9429]
[1730213335109,11.74398019,179.31,179.3,13.9429]
[1730213335314,16.5601,179.36,179.3,13.9429]
[1730213335315,11.74398019,179.32,179.3,13.9429]
[1730213336826,11.74398019,179.31,179.3,13.9429]
[1730213337013,11.74398019,179.32,179.3,13.9429]
[1730213337217,11.74398019,179.33,179.3,13.9429]
[1730213337636,15.3792,179.4,179.31,11.74398019]
[1730213337811,11.74398019,179.35,179.3,25.68688019]
[1730213338136,11.74398019,179.33,179.3,19.5201]
[1730213338640,11.74398019,179.34,179.3,19.5201]
[1730213339433,11.74398019,179.33,179.3,19.5201]
[1730213340820,11.74398019,179.36,179.32,11.74398019]
[1730213341018,11.74398019,179.36,179.31,11.74398019]
[1730213341220,11.74398019,179.34,179.3,47.4063]
[1730213342045,11.74398019,179.36,179.31,11.74398019]
[1730213342348,11.74398019,179.37,179.32,11.74398019]
[1730213342525,11.74398019,179.38,179.33,11.74398019]
[1730213342714,15.3792,179.4,179.3,47.4063]
[1730213342715,11.74398019,179.4,179.35,11.74398019]
[1730213343435,11.74398019,179.41,179.37,11.74398019]
[1730213344145,11.74398019,179.41,179.32,23.75155582]
[1730213344146,11.74398019,179.44,179.39,11.74398019]
[1730213344325,23.72681509,179.48,179.43,11.74398019]
[1730213345053,11.74398019,179.47,179.42,11.74398019]
[1730213345415,11.74398019,179.46,179.41,11.74398019]
[1730213345637,11.74398019,179.47,179.42,11.74398019]
[1730213345941,11.74398019,179.47,179.43,19.5062]
[1730213346336,11.74398019,179.48,179.43,31.25018019]
[1730213346754,11.74398019,179.47,179.43,19.5062]
[1730213347744,11.74398019,179.48,179.43,31.25018019]
[1730213348744,11.74398019,179.47,179.43,19.5062]
[1730213348944,11.74398019,179.46,179.43,19.5062]
[1730213350445,11.74398019,179.46,179.43,13.933]
[1730213351072,11.74398019,179.45,179.43,13.933]
[1730213351368,11.74398019,179.44,179.4,19.5093]
[1730213351560,11.74398019,179.42,179.4,19.5093]
[1730213352070,11.74398019,179.41,179.36,19.5131]
[1730213352239,11.74398019,179.39,179.36,19.5131]
[1730213352440,11.74398019,179.4,179.36,13.9378]
[1730213352652,10.74398019,179.4,179.36,13.9378]
[1730213353869,11.74398019,179.42,179.37,11.74398019]
[1730213354061,11.74398019,179.41,179.36,47.3899]
[1730213354263,11.74398019,179.42,179.37,11.74398019]
[1730213354641,11.74398019,179.41,179.36,59.13388019]
[1730213354843,11.74398019,179.43,179.38,11.74398019]
[1730213355243,11.74398019,179.44,179.39,11.74398019]
[1730213355439,11.74398019,179.43,179.38,11.74398019]
[1730213355669,11.74398019,179.43,179.39,19.5105]
[1730213356356,11.74398019,179.45,179.4,11.74398019]